{"text_format":"3","workbook":"xlsx","n_sheets":2,"sheets":["نموذج العرض","تفاصيل التكلفة"],"not_rendered":{"charts":1,"images":2,"defined_names":4},"read":"whole","date_system":"1900"}

{"sheet":"نموذج العرض","index":0,"n_rows":48,"n_cols":7,"rows_kept":48,"merged":[[15,1,25,5],[29,1,31,5],[35,1,37,5],[43,1,45,5]]}
[]
[null,"نموذج عرض البناء",{"$nulls":4}," "]
[]
[]
[null,"معلومات المالك",null,null,"معلومات المقاول"]
[null,"الاسم","عمرو زكي",null,"الشركة","الشركة الوطنية"]
[null,"العنوان","123 الشارع الرئيسي",null,"الاسم","أسامة شبانة"]
[null,"المدينة، والرمز البريدي للولاية","الرياض",null,"العنوان","321 الشارع الجنوبي"]
[null,"الهاتف","0111-555 (888)",null,"المدينة، والرمز البريدي للولاية","الرياض"]
[null,"البريد الإلكتروني","Amr@proseware.com",null,"الهاتف","0123-555 (888)"]
[{"$nulls":4},"البريد الإلكتروني","Osama@fabrikam.com"]
[null,"اسم المشروع","إنشاء درج",null,"تاريخ الاكتمال","2013-07-14"]
[]
[null,"نطاق العمل"]
[]
[null,"نطاق عمل المشروع هنا. اكتب كافة المواصفات التي تريدها. فهذا نموذج لمشروع بناء مجموعة من السلالم الكبيرة. سنستخدم خشباً حجمه 2×4 و2×8 فقط، علاوة على حاملات عوارض لبناء الإطار. سيتم قطع السلالم من الخشب الذي حجمه 2×4. لن يتم استخدام براغي أقل من 2 بوصة. ولن يتم استخدام مسامير أقل من 10 سم. تم تصميم درجة السلم بحيث تتحمل وزن قدره 500 كيلو جرام على الأقل. سيتم تسوية السلالم مع سلالم المنزل. سيتم تثبيت المرقاة بالمنزل. تقع مسؤولية التنظيف على عاتق المقاول."]
{"$rows_empty":11}
[null,"غير المشمول"]
[]
[null,"لن يتم تركيب درابزين. سيتم تهيئة الأرض بمعرفة المالك. سيتم طلاء السلالم بمعرفة المالك."]
[]
[]
[]
[null,"عرض الشركة"]
[]
[null,"نحن الشركة الوطنية نقدم عرضاً يشمل نطاق العمل أعلاه، بحيث ينتهي في 14/7/2010 نظير مبلغ قدره 47643 ريالاً."]
[]
[]
[]
[null,"مقدم من (ممثل الشركة)",{"$nulls":3},"التاريخ"]
[]
[null,"موافقة المالك"]
[]
[null,"أقبل أنا عمرو زكي نطاق العمل الموضح أعلاه، والمقترح الانتهاء منه في 14/7/2010 نظير مبلغ قدره 47643 ريالاً."]
[]
[]
[]
[null,"مقدم من (مالك المنزل أو ممثل معتمد)",{"$nulls":3},"التاريخ"]

{"sheet":"تفاصيل التكلفة","index":1,"n_rows":47,"n_cols":6,"rows_kept":47,"merged":[[42,3,42,4],[43,3,43,4],[44,3,44,4],[45,3,45,4],[46,3,46,4],[47,3,47,4],[48,3,48,4],[49,3,49,4]]}
[]
[null,"ملخص تكلفة العرض",{"$nulls":3}," "]
[]
[]
[null,"قائمة الخامات والتكلفة"]
[]
[null,"الكمية","الوصف","التكلفة","الإجمالي"," "]
[null,5,"خشب 2x2x10",{"v":6.75,"d":" 6.75 ر.س.‏"},{"$f":"BidItems[التكلفة]*BidItems[الكمية]","v":{"v":33.75,"d":" 33.75 ر.س.‏"}},{"$f":"_xlfn.RANK.EQ(BidItems[[#This Row],[الإجمالي]],BidItems[الإجمالي])","v":4}]
[null,20,"خشب 2x4x10",{"v":4.97,"d":" 4.97 ر.س.‏"},{"$f":"BidItems[التكلفة]*BidItems[الكمية]","v":{"v":99.39999999999999,"d":" 99.40 ر.س.‏"}},{"$f":"_xlfn.RANK.EQ(BidItems[[#This Row],[الإجمالي]],BidItems[الإجمالي])","v":2}]
[null,30,"حاملات العوارض",{"v":2.49,"d":" 2.49 ر.س.‏"},{"$f":"BidItems[التكلفة]*BidItems[الكمية]","v":{"v":74.7,"d":" 74.70 ر.س.‏"}},{"$f":"_xlfn.RANK.EQ(BidItems[[#This Row],[الإجمالي]],BidItems[الإجمالي])","v":3}]
[null,2,"علبة براغي 2 بوصة",{"v":6.67,"d":" 6.67 ر.س.‏"},{"$f":"BidItems[التكلفة]*BidItems[الكمية]","v":{"v":13.34,"d":" 13.34 ر.س.‏"}},{"$f":"_xlfn.RANK.EQ(BidItems[[#This Row],[الإجمالي]],BidItems[الإجمالي])","v":6}]
[null,2,"علبة مسامير 10 سم",{"v":3.25,"d":" 3.25 ر.س.‏"},{"$f":"BidItems[التكلفة]*BidItems[الكمية]","v":{"v":6.5,"d":" 6.50 ر.س.‏"}},{"$f":"_xlfn.RANK.EQ(BidItems[[#This Row],[الإجمالي]],BidItems[الإجمالي])","v":7}]
[null,2,"قفازات جلدية",{"v":7.75,"d":" 7.75 ر.س.‏"},{"$f":"BidItems[التكلفة]*BidItems[الكمية]","v":{"v":15.5,"d":" 15.50 ر.س.‏"}},{"$f":"_xlfn.RANK.EQ(BidItems[[#This Row],[الإجمالي]],BidItems[الإجمالي])","v":5}]
[null,2,"أجور العمال",{"v":100,"d":" 100.00 ر.س.‏"},{"$f":"BidItems[التكلفة]*BidItems[الكمية]","v":{"v":200,"d":" 200.00 ر.س.‏"}},{"$f":"_xlfn.RANK.EQ(BidItems[[#This Row],[الإجمالي]],BidItems[الإجمالي])","v":1}]
[{"$nulls":4},{"$f":"BidItems[التكلفة]*BidItems[الكمية]","v":0},{"$f":"_xlfn.RANK.EQ(BidItems[[#This Row],[الإجمالي]],BidItems[الإجمالي])","v":8}]
[{"$nulls":4},{"$f":"BidItems[التكلفة]*BidItems[الكمية]","v":0},{"$f":"_xlfn.RANK.EQ(BidItems[[#This Row],[الإجمالي]],BidItems[الإجمالي])","v":8}]
[{"$nulls":4},{"$f":"BidItems[التكلفة]*BidItems[الكمية]","v":0},{"$f":"_xlfn.RANK.EQ(BidItems[[#This Row],[الإجمالي]],BidItems[الإجمالي])","v":8}]
[{"$nulls":4},{"$f":"BidItems[التكلفة]*BidItems[الكمية]","v":0},{"$f":"_xlfn.RANK.EQ(BidItems[[#This Row],[الإجمالي]],BidItems[الإجمالي])","v":8}]
[{"$nulls":4},{"$f":"BidItems[التكلفة]*BidItems[الكمية]","v":0},{"$f":"_xlfn.RANK.EQ(BidItems[[#This Row],[الإجمالي]],BidItems[الإجمالي])","v":8}]
[{"$nulls":4},{"$f":"BidItems[التكلفة]*BidItems[الكمية]","v":0},{"$f":"_xlfn.RANK.EQ(BidItems[[#This Row],[الإجمالي]],BidItems[الإجمالي])","v":8}]
[{"$nulls":4},{"$f":"BidItems[التكلفة]*BidItems[الكمية]","v":0},{"$f":"_xlfn.RANK.EQ(BidItems[[#This Row],[الإجمالي]],BidItems[الإجمالي])","v":8}]
[{"$nulls":4},{"$f":"BidItems[التكلفة]*BidItems[الكمية]","v":0},{"$f":"_xlfn.RANK.EQ(BidItems[[#This Row],[الإجمالي]],BidItems[الإجمالي])","v":8}]
[{"$nulls":4},{"$f":"BidItems[التكلفة]*BidItems[الكمية]","v":0},{"$f":"_xlfn.RANK.EQ(BidItems[[#This Row],[الإجمالي]],BidItems[الإجمالي])","v":8}]
[{"$nulls":4},{"$f":"BidItems[التكلفة]*BidItems[الكمية]","v":0},{"$f":"_xlfn.RANK.EQ(BidItems[[#This Row],[الإجمالي]],BidItems[الإجمالي])","v":8}]
[{"$nulls":4},{"$f":"BidItems[التكلفة]*BidItems[الكمية]","v":0},{"$f":"_xlfn.RANK.EQ(BidItems[[#This Row],[الإجمالي]],BidItems[الإجمالي])","v":8}]
[{"$nulls":4},{"$f":"BidItems[التكلفة]*BidItems[الكمية]","v":0},{"$f":"_xlfn.RANK.EQ(BidItems[[#This Row],[الإجمالي]],BidItems[الإجمالي])","v":8}]
[{"$nulls":4},{"$f":"BidItems[التكلفة]*BidItems[الكمية]","v":0},{"$f":"_xlfn.RANK.EQ(BidItems[[#This Row],[الإجمالي]],BidItems[الإجمالي])","v":8}]
[{"$nulls":4},{"$f":"BidItems[التكلفة]*BidItems[الكمية]","v":0},{"$f":"_xlfn.RANK.EQ(BidItems[[#This Row],[الإجمالي]],BidItems[الإجمالي])","v":8}]
[{"$nulls":4},{"$f":"BidItems[التكلفة]*BidItems[الكمية]","v":0},{"$f":"_xlfn.RANK.EQ(BidItems[[#This Row],[الإجمالي]],BidItems[الإجمالي])","v":8}]
[{"$nulls":4},{"$f":"BidItems[التكلفة]*BidItems[الكمية]","v":0},{"$f":"_xlfn.RANK.EQ(BidItems[[#This Row],[الإجمالي]],BidItems[الإجمالي])","v":8}]
[1,{"$nulls":3},{"$f":"BidItems[التكلفة]*BidItems[الكمية]","v":0},{"$f":"_xlfn.RANK.EQ(BidItems[[#This Row],[الإجمالي]],BidItems[الإجمالي])","v":8}]
[2,null,null,"الإجمالي الفرعي",{"$f":"SUBTOTAL(109,BidItems[الإجمالي])","v":{"v":443.18999999999994,"d":" 443.19 ر.س.‏"}}]
[3,null,null,"‏‏معدل الضريبة‏",{"v":0.075,"d":"7.50%"}]
[4,null,null,"الضريبة",{"$f":"TaxRate*BidItems[[#Totals],[الإجمالي]]","v":{"v":33.23924999999999,"d":" 33.24 ر.س.‏"}}]
[5,null,null,"الإجمالي الكلي",{"$f":"Tax+BidItems[[#Totals],[الإجمالي]]","v":{"v":476.4292499999999,"d":" 476.43 ر.س.‏"}}]
[]
[]
[]
[null,"تفاصيل الخامات والتكلفة"]
[]
[]
[null,null,"الإجمالي","ملاحظات"]
[null,{"$f":"INDEX(BidItems[],MATCH(A31,BidItems[[ ]],0),2)","v":"أجور العمال"},{"$f":"INDEX(BidItems[],MATCH(A31,BidItems[[ ]],0),4)","v":200}]
[null,{"$f":"INDEX(BidItems[],MATCH(A32,BidItems[[ ]],0),2)","v":"خشب 2x4x10"},{"$f":"INDEX(BidItems[],MATCH(A32,BidItems[[ ]],0),4)","v":99.39999999999999}]
[null,{"$f":"INDEX(BidItems[],MATCH(A33,BidItems[[ ]],0),2)","v":"حاملات العوارض"},{"$f":"INDEX(BidItems[],MATCH(A33,BidItems[[ ]],0),4)","v":74.7}]
[null,{"$f":"INDEX(BidItems[],MATCH(A34,BidItems[[ ]],0),2)","v":"خشب 2x2x10"},{"$f":"INDEX(BidItems[],MATCH(A34,BidItems[[ ]],0),4)","v":33.75}]
[null,{"$f":"INDEX(BidItems[],MATCH(A35,BidItems[[ ]],0),2)","v":"قفازات جلدية"},{"$f":"INDEX(BidItems[],MATCH(A35,BidItems[[ ]],0),4)","v":15.5}]